[Event "*** MasterClass Titled Tuesday Blitz"]
[Site "Chess.com"]
[Date "2017.10.03"]
[Round "6"]
[White "saraswathii"]
[Black "chessking2151"]
[Result "0-1"]
[WhiteElo "2279"]
[BlackElo "2386"]
[TimeControl "180+2"]
[EndTime "14:22:47 PDT"]
[Termination "chessking2151 won by resignation"]

1. e4 {[%clk 0:03:01.9]} 1... e5 {[%clk 0:02:59.8]} 2. d3 {[%clk 0:03:02.7]}
2... Nc6 {[%clk 0:02:58]} 3. Nf3 {[%clk 0:03:03.4]} 3... Bc5 {[%clk 0:02:55.4]}
4. g3 {[%clk 0:03:03.8]} 4... d6 {[%clk 0:02:55.5]} 5. Bg2 {[%clk 0:03:04.6]}
5... Nf6 {[%clk 0:02:56.3]} 6. O-O {[%clk 0:03:05.4]} 6... O-O {[%clk
0:02:57.7]} 7. Qe2 {[%clk 0:03:05.7]} 7... Bg4 {[%clk 0:02:57.4]} 8. c3 {[%clk
0:03:06.4]} 8... Re8 {[%clk 0:02:57.4]} 9. Be3 {[%clk 0:03:05.3]} 9... Bxe3
{[%clk 0:02:56.9]} 10. Qxe3 {[%clk 0:03:05.7]} 10... d5 {[%clk 0:02:58]} 11. h3
{[%clk 0:02:53.2]} 11... Bh5 {[%clk 0:02:52.2]} 12. Na3 {[%clk 0:02:41.5]} 12...
d4 {[%clk 0:02:47]} 13. cxd4 {[%clk 0:02:41.5]} 13... Bxf3 {[%clk 0:02:47.2]}
14. Bxf3 {[%clk 0:02:37.3]} 14... Nxd4 {[%clk 0:02:48.2]} 15. Rac1 {[%clk
0:02:34.8]} 15... c6 {[%clk 0:02:46.9]} 16. Bg2 {[%clk 0:02:30.7]} 16... Nd7
{[%clk 0:02:45.9]} 17. Nc4 {[%clk 0:02:23.4]} 17... Qe7 {[%clk 0:02:21.4]} 18.
f4 {[%clk 0:02:11.3]} 18... f6 {[%clk 0:02:16.8]} 19. fxe5 {[%clk 0:01:59.9]}
19... fxe5 {[%clk 0:02:18.7]} 20. Rf2 {[%clk 0:01:48.5]} 20... Rf8 {[%clk
0:02:10.7]} 21. Rcf1 {[%clk 0:01:44.8]} 21... Rxf2 {[%clk 0:02:10.7]} 22. Rxf2
{[%clk 0:01:43.9]} 22... b5 {[%clk 0:02:05.1]} 23. Nd2 {[%clk 0:01:40.9]} 23...
Rf8 {[%clk 0:01:56.6]} 24. Nf3 {[%clk 0:01:35.5]} 24... Nxf3+ {[%clk 0:01:53.6]}
25. Bxf3 {[%clk 0:01:24.7]} 25... Qc5 {[%clk 0:01:52]} 26. Qe2 {[%clk
0:00:57.9]} 26... Qd4 {[%clk 0:01:40.3]} 27. Kg2 {[%clk 0:00:57.5]} 27... Nc5
{[%clk 0:01:37.9]} 28. Bg4 {[%clk 0:00:37.7]} 28... Rxf2+ {[%clk 0:01:33.7]} 29.
Qxf2 {[%clk 0:00:39.6]} 29... Qxf2+ {[%clk 0:01:35.6]} 30. Kxf2 {[%clk
0:00:38.9]} 30... Nxd3+ {[%clk 0:01:37.5]} 31. Ke3 {[%clk 0:00:39.2]} 31... Nxb2
{[%clk 0:01:37.6]} 32. Bd7 {[%clk 0:00:39.8]} 32... Nc4+ {[%clk 0:01:38.4]} 33.
Kd3 {[%clk 0:00:40.4]} 33... Na5 {[%clk 0:01:28.5]} 34. Kc3 {[%clk 0:00:41.2]}
34... Kf7 {[%clk 0:01:28.3]} 35. Kb4 {[%clk 0:00:42.2]} 35... Ke7 {[%clk
0:01:28.2]} 36. Bf5 {[%clk 0:00:42.8]} 36... Nb7 {[%clk 0:01:28.8]} 37. Bxh7
{[%clk 0:00:42.2]} 37... a5+ {[%clk 0:01:30.1]} 38. Kc3 {[%clk 0:00:42.6]} 38...
Nc5 {[%clk 0:01:30.1]} 39. h4 {[%clk 0:00:37.4]} 39... Kf6 {[%clk 0:01:29.7]}
40. h5 {[%clk 0:00:37.3]} 40... Kg5 {[%clk 0:01:28.1]} 41. Bg6 {[%clk
0:00:35.2]} 41... Ne6 {[%clk 0:01:26.8]} 42. Be8 {[%clk 0:00:33.8]} 42... Nd4
{[%clk 0:01:27.8]} 43. Kd3 {[%clk 0:00:30.6]} 43... Kg4 {[%clk 0:01:27.4]} 0-1

[Event "*** MasterClass Titled Tuesday Blitz"]
[Site "Chess.com"]
[Date "2017.10.03"]
[Round "6"]
[White "Oleksandr_Bortnyk"]
[Black "Mbneu"]
[Result "1-0"]
[WhiteElo "2818"]
[BlackElo "2208"]
[TimeControl "180+2"]
[EndTime "14:23:05 PDT"]
[Termination "Oleksandr_Bortnyk won by resignation"]

1. e4 {[%clk 0:03:01.8]} 1... e5 {[%clk 0:03:00.6]} 2. Nf3 {[%clk 0:03:02.4]}
2... Nc6 {[%clk 0:03:02]} 3. Bb5 {[%clk 0:03:03.4]} 3... f5 {[%clk 0:03:03]} 4.
d3 {[%clk 0:03:03.2]} 4... fxe4 {[%clk 0:03:03.4]} 5. dxe4 {[%clk 0:03:04.8]}
5... Nf6 {[%clk 0:03:04.7]} 6. Qd3 {[%clk 0:03:05.1]} 6... Bc5 {[%clk
0:02:48.9]} 7. Bg5 {[%clk 0:02:57.8]} 7... d6 {[%clk 0:02:43.7]} 8. O-O {[%clk
0:02:47.1]} 8... O-O {[%clk 0:02:43.6]} 9. Bxc6 {[%clk 0:02:48.2]} 9... bxc6
{[%clk 0:02:38.6]} 10. Nxe5 {[%clk 0:02:19.3]} 10... Qe8 {[%clk 0:02:30.8]} 11.
Bxf6 {[%clk 0:02:15.1]} 11... Rxf6 {[%clk 0:02:28.6]} 12. Nf3 {[%clk 0:02:15.7]}
12... a5 {[%clk 0:02:22.5]} 13. Nbd2 {[%clk 0:02:14.4]} 13... Ba6 {[%clk
0:01:49.1]} 14. c4 {[%clk 0:02:13.6]} 14... Qh5 {[%clk 0:01:41.9]} 15. e5 {[%clk
0:02:09.8]} 15... Rf4 {[%clk 0:01:37.2]} 16. g3 {[%clk 0:01:59.3]} 16... Bxc4
{[%clk 0:01:24.7]} 17. Nxc4 {[%clk 0:01:41]} 17... Rxf3 {[%clk 0:01:24.8]} 18.
Ne3 {[%clk 0:00:57]} 18... Qxe5 {[%clk 0:01:14.3]} 19. Qc4+ {[%clk 0:00:55.6]}
19... Kh8 {[%clk 0:01:11.6]} 20. Ng4 {[%clk 0:00:48.7]} 20... Qf5 {[%clk
0:00:42.4]} 21. Rae1 {[%clk 0:00:44]} 21... Rf8 {[%clk 0:00:41.7]} 22. Qe4
{[%clk 0:00:07.4]} 22... Qxe4 {[%clk 0:00:34.8]} 23. Rxe4 {[%clk 0:00:09.3]}
23... h5 {[%clk 0:00:35.3]} 24. Ne3 {[%clk 0:00:08.7]} 24... Bxe3 {[%clk
0:00:35.5]} 25. Rxe3 {[%clk 0:00:10.6]} 25... Rxe3 {[%clk 0:00:35.7]} 26. fxe3
{[%clk 0:00:12.5]} 26... Rxf1+ {[%clk 0:00:36]} 27. Kxf1 {[%clk 0:00:14.4]}
27... g5 {[%clk 0:00:30.2]} 28. a4 {[%clk 0:00:15.3]} 28... Kg7 {[%clk
0:00:30.9]} 29. b4 {[%clk 0:00:16.4]} 29... axb4 {[%clk 0:00:28.2]} 30. Ke2
{[%clk 0:00:18]} 1-0

[Event "*** MasterClass Titled Tuesday Blitz"]
[Site "Chess.com"]
[Date "2017.10.03"]
[Round "6"]
[White "Too_Stupid_To_Play"]
[Black "nutibara"]
[Result "0-1"]
[WhiteElo "2148"]
[BlackElo "2287"]
[TimeControl "180+2"]
[EndTime "14:23:10 PDT"]
[Termination "nutibara won by resignation"]

1. Nf3 {[%clk 0:03:01.9]} 1... d5 {[%clk 0:03:00.9]} 2. c4 {[%clk 0:03:03.5]}
2... d4 {[%clk 0:03:02]} 3. g3 {[%clk 0:03:03.3]} 3... c5 {[%clk 0:03:02.4]} 4.
Bg2 {[%clk 0:03:04.6]} 4... Nc6 {[%clk 0:03:02.5]} 5. O-O {[%clk 0:03:06.1]}
5... e5 {[%clk 0:03:03.8]} 6. d3 {[%clk 0:03:06]} 6... f6 {[%clk 0:03:05.2]} 7.
e3 {[%clk 0:03:06.2]} 7... Bg4 {[%clk 0:03:06.3]} 8. exd4 {[%clk 0:03:06.8]}
8... cxd4 {[%clk 0:03:08.2]} 9. Re1 {[%clk 0:03:04.3]} 9... Qd7 {[%clk
0:03:09.1]} 10. Na3 {[%clk 0:02:55.2]} 10... Bd6 {[%clk 0:03:06.6]} 11. Nc2
{[%clk 0:02:44]} 11... Nge7 {[%clk 0:03:05.2]} 12. a3 {[%clk 0:02:24.9]} 12...
a5 {[%clk 0:03:05.1]} 13. Bd2 {[%clk 0:02:22.3]} 13... Rb8 {[%clk 0:02:38.7]}
14. b4 {[%clk 0:02:22]} 14... axb4 {[%clk 0:02:39.2]} 15. axb4 {[%clk
0:02:23.2]} 15... b5 {[%clk 0:02:40.6]} 16. cxb5 {[%clk 0:01:47.2]} 16... Rxb5
{[%clk 0:02:40.1]} 17. Na3 {[%clk 0:01:48.2]} 17... Rb8 {[%clk 0:02:40.6]} 18.
b5 {[%clk 0:01:44.3]} 18... Na7 {[%clk 0:02:27.6]} 19. b6 {[%clk 0:01:29.1]}
19... Nac8 {[%clk 0:02:13]} 20. Nc4 {[%clk 0:01:10]} 20... Nxb6 {[%clk
0:02:10.4]} 21. Nxd6+ {[%clk 0:00:47.7]} 21... Qxd6 {[%clk 0:02:10.8]} 22. Ra6
{[%clk 0:00:36.1]} 22... O-O {[%clk 0:02:04.8]} 23. Ba5 {[%clk 0:00:26.5]} 23...
Ned5 {[%clk 0:01:27.7]} 24. Qb3 {[%clk 0:00:23]} 24... Be6 {[%clk 0:00:16.6]}
25. Nxd4 {[%clk 0:00:24]} 25... exd4 {[%clk 0:00:08.1]} 26. Rxe6 {[%clk
0:00:25.9]} 26... Qxe6 {[%clk 0:00:09.1]} 27. Bxd5 {[%clk 0:00:27.5]} 27... Qxd5
{[%clk 0:00:08.4]} 28. Rxb6 {[%clk 0:00:13.8]} 28... Qxb3 {[%clk 0:00:08.6]} 0-1

[Event "*** MasterClass Titled Tuesday Blitz"]
[Site "Chess.com"]
[Date "2017.10.03"]
[Round "6"]
[White "Superfelix"]
[Black "Rodalquilar"]
[Result "1-0"]
[WhiteElo "2322"]
[BlackElo "2500"]
[TimeControl "180+2"]
[EndTime "14:23:23 PDT"]
[Termination "Superfelix won on time"]

1. e4 {[%clk 0:03:01.9]} 1... c5 {[%clk 0:03:00.7]} 2. Nf3 {[%clk 0:03:03]} 2...
Nc6 {[%clk 0:03:01.7]} 3. Bb5 {[%clk 0:03:02.7]} 3... g6 {[%clk 0:03:02.4]} 4.
Bxc6 {[%clk 0:03:03.5]} 4... dxc6 {[%clk 0:03:03.5]} 5. h3 {[%clk 0:03:03.9]}
5... Bg7 {[%clk 0:03:03.8]} 6. d3 {[%clk 0:03:02.8]} 6... Nf6 {[%clk 0:03:05.1]}
7. Be3 {[%clk 0:02:54.9]} 7... Nd7 {[%clk 0:03:06.1]} 8. Nc3 {[%clk 0:02:55.7]}
8... e5 {[%clk 0:03:07.1]} 9. Qd2 {[%clk 0:02:55.9]} 9... h6 {[%clk 0:03:06.1]}
10. a3 {[%clk 0:02:55.8]} 10... Qe7 {[%clk 0:03:06.8]} 11. O-O {[%clk
0:02:47.6]} 11... Nf8 {[%clk 0:03:07.7]} 12. b4 {[%clk 0:02:42.8]} 12... Ne6
{[%clk 0:03:07.3]} 13. bxc5 {[%clk 0:02:37.2]} 13... Nxc5 {[%clk 0:03:08]} 14.
d4 {[%clk 0:02:36.5]} 14... exd4 {[%clk 0:03:02.2]} 15. Bxd4 {[%clk 0:02:37.6]}
15... O-O {[%clk 0:02:41.2]} 16. Rfe1 {[%clk 0:02:26.5]} 16... Rd8 {[%clk
0:02:39.2]} 17. Qe3 {[%clk 0:02:27.1]} 17... Ne6 {[%clk 0:02:20]} 18. Bxg7
{[%clk 0:02:24.3]} 18... Kxg7 {[%clk 0:02:21.9]} 19. Na4 {[%clk 0:02:10.6]}
19... b5 {[%clk 0:02:15.7]} 20. Nb2 {[%clk 0:02:10.5]} 20... Qc5 {[%clk
0:02:12.6]} 21. Qb3 {[%clk 0:02:00.8]} 21... Nf4 {[%clk 0:01:53.6]} 22. Nd3
{[%clk 0:01:51.2]} 22... Nxd3 {[%clk 0:01:19.9]} 23. cxd3 {[%clk 0:01:53.1]}
23... Be6 {[%clk 0:01:21.2]} 24. Qb2+ {[%clk 0:01:53.5]} 24... Kh7 {[%clk
0:01:22.6]} 25. Rac1 {[%clk 0:01:52.2]} 25... Qh5 {[%clk 0:01:21.3]} 26. Qf6
{[%clk 0:00:54.8]} 26... Rxd3 {[%clk 0:00:25.4]} 27. Rxc6 {[%clk 0:00:55.5]}
27... Re8 {[%clk 0:00:16.9]} 28. Rc7 {[%clk 0:00:46.1]} 28... Kg8 {[%clk
0:00:14.5]} 29. Ne5 {[%clk 0:00:40.8]} 29... Rd1 {[%clk 0:00:14.5]} 30. Nxf7
{[%clk 0:00:19.2]} 30... Rxe1+ {[%clk 0:00:10.5]} 31. Kh2 {[%clk 0:00:20.4]} 1-0

[Event "*** MasterClass Titled Tuesday Blitz"]
[Site "Chess.com"]
[Date "2017.10.03"]
[Round "6"]
[White "evgenysharapov"]
[Black "51616516516"]
[Result "1-0"]
[WhiteElo "2259"]
[BlackElo "2057"]
[TimeControl "180+2"]
[EndTime "14:23:24 PDT"]
[Termination "evgenysharapov won on time"]

1. e4 {[%clk 0:03:01.9]} 1... c5 {[%clk 0:02:58.4]} 2. Nf3 {[%clk 0:03:02.1]}
2... g6 {[%clk 0:02:59.8]} 3. d4 {[%clk 0:03:02.6]} 3... cxd4 {[%clk 0:03:01.2]}
4. Nxd4 {[%clk 0:03:02.8]} 4... Nc6 {[%clk 0:03:01.8]} 5. c4 {[%clk 0:03:02.8]}
5... Bg7 {[%clk 0:02:44.6]} 6. Be3 {[%clk 0:03:02.8]} 6... Nf6 {[%clk
0:02:42.2]} 7. Nc3 {[%clk 0:03:02.4]} 7... O-O {[%clk 0:02:41.6]} 8. Be2 {[%clk
0:03:02.6]} 8... d6 {[%clk 0:02:41.7]} 9. O-O {[%clk 0:03:00.9]} 9... Bd7 {[%clk
0:02:42.5]} 10. Qd2 {[%clk 0:03:00.1]} 10... Nxd4 {[%clk 0:02:41.6]} 11. Bxd4
{[%clk 0:03:01.1]} 11... Bc6 {[%clk 0:02:43.2]} 12. f3 {[%clk 0:03:01.8]} 12...
a5 {[%clk 0:02:43]} 13. b3 {[%clk 0:02:58.1]} 13... Nd7 {[%clk 0:02:43.3]} 14.
Be3 {[%clk 0:02:59.1]} 14... Nc5 {[%clk 0:02:40.6]} 15. Rab1 {[%clk 0:02:59]}
15... Qb6 {[%clk 0:02:39.1]} 16. Rfc1 {[%clk 0:02:58.8]} 16... Qb4 {[%clk
0:02:36.3]} 17. Nd5 {[%clk 0:02:43.8]} 17... Bxd5 {[%clk 0:02:36.7]} 18. cxd5
{[%clk 0:02:39.4]} 18... Rfc8 {[%clk 0:02:17.4]} 19. Rc4 {[%clk 0:02:30.4]}
19... Qxd2 {[%clk 0:02:14.9]} 20. Bxd2 {[%clk 0:02:31]} 20... b5 {[%clk
0:02:10.6]} 21. Rc2 {[%clk 0:02:31.7]} 21... Bd4+ {[%clk 0:01:51.9]} 22. Kf1
{[%clk 0:02:31.4]} 22... Kg7 {[%clk 0:01:44.6]} 23. Bxb5 {[%clk 0:02:27.4]}
23... Nxe4 {[%clk 0:00:51.7]} 24. Bc6 {[%clk 0:02:07]} 24... Nxd2+ {[%clk
0:00:30.6]} 25. Rxd2 {[%clk 0:02:07.1]} 25... Bc3 {[%clk 0:00:31]} 26. Rd3
{[%clk 0:02:07.3]} 26... Be5 {[%clk 0:00:25.3]} 27. Bxa8 {[%clk 0:02:07]} 27...
Rxa8 {[%clk 0:00:27]} 28. g3 {[%clk 0:01:59.9]} 28... Rc8 {[%clk 0:00:23.2]} 29.
f4 {[%clk 0:02:00.4]} 29... Bf6 {[%clk 0:00:23.9]} 30. Ke2 {[%clk 0:02:00.3]}
30... h5 {[%clk 0:00:15.2]} 31. Kd2 {[%clk 0:02:00.2]} 31... Rc5 {[%clk
0:00:12.5]} 32. Rc1 {[%clk 0:01:59.2]} 32... Rb5 {[%clk 0:00:13.9]} 33. Rc4
{[%clk 0:01:56.2]} 33... Bb2 {[%clk 0:00:07.3]} 34. Kc2 {[%clk 0:01:54]} 34...
Ba3 {[%clk 0:00:06.7]} 35. h3 {[%clk 0:01:48.8]} 35... Kf6 {[%clk 0:00:07.4]}
36. Kd2 {[%clk 0:01:44.9]} 36... Bb4+ {[%clk 0:00:07.8]} 37. Ke3 {[%clk
0:01:45.6]} 37... Ba3 {[%clk 0:00:08]} 38. Ke4 {[%clk 0:01:45.9]} 38... Bb2
{[%clk 0:00:05.6]} 39. g4 {[%clk 0:01:45.4]} 39... hxg4 {[%clk 0:00:05.3]} 40.
hxg4 {[%clk 0:01:46]} 40... g5 {[%clk 0:00:05.3]} 41. f5 {[%clk 0:01:44.6]}
41... Ba3 {[%clk 0:00:03.3]} 42. Rd2 {[%clk 0:01:40.5]} 42... Bc1 {[%clk
0:00:03.3]} 43. Rxc1 {[%clk 0:01:39.9]} 1-0

[Event "*** MasterClass Titled Tuesday Blitz"]
[Site "Chess.com"]
[Date "2017.10.03"]
[Round "6"]
[White "rickkrewson"]
[Black "timator"]
[Result "0-1"]
[WhiteElo "1774"]
[BlackElo "2397"]
[TimeControl "180+2"]
[EndTime "14:23:26 PDT"]
[Termination "timator won on time"]

1. Nf3 {[%clk 0:03:01.9]} 1... Nf6 {[%clk 0:02:59.8]} 2. e3 {[%clk 0:03:02.2]}
2... g6 {[%clk 0:02:59.7]} 3. b3 {[%clk 0:03:03.2]} 3... Bg7 {[%clk 0:03:01.6]}
4. Bb2 {[%clk 0:03:03.7]} 4... O-O {[%clk 0:03:03.2]} 5. Be2 {[%clk 0:03:04.7]}
5... b6 {[%clk 0:03:03.5]} 6. O-O {[%clk 0:03:05.4]} 6... Bb7 {[%clk 0:03:05.2]}
7. d4 {[%clk 0:03:06.4]} 7... d5 {[%clk 0:03:05.4]} 8. c4 {[%clk 0:03:06.9]}
8... e6 {[%clk 0:03:06.4]} 9. Nc3 {[%clk 0:03:02.7]} 9... c6 {[%clk 0:03:07.6]}
10. Rc1 {[%clk 0:03:01.6]} 10... Nbd7 {[%clk 0:03:08.6]} 11. Re1 {[%clk
0:02:39.3]} 11... h6 {[%clk 0:03:08.7]} 12. h3 {[%clk 0:02:39.5]} 12... Rc8
{[%clk 0:03:08.3]} 13. Bd3 {[%clk 0:02:40.5]} 13... Re8 {[%clk 0:03:07.6]} 14.
e4 {[%clk 0:02:41.1]} 14... dxe4 {[%clk 0:03:00.7]} 15. Nxe4 {[%clk 0:02:41.7]}
15... Nxe4 {[%clk 0:03:01.6]} 16. Bxe4 {[%clk 0:02:42.4]} 16... Qc7 {[%clk
0:02:59.8]} 17. Qe2 {[%clk 0:02:33.8]} 17... g5 {[%clk 0:02:43.4]} 18. Rcd1
{[%clk 0:02:24.3]} 18... Rcd8 {[%clk 0:02:43.4]} 19. Bb1 {[%clk 0:02:17]} 19...
Nf8 {[%clk 0:02:41.5]} 20. Ne5 {[%clk 0:02:12.7]} 20... Bxe5 {[%clk 0:02:37.3]}
21. dxe5 {[%clk 0:02:13.2]} 21... c5 {[%clk 0:02:36.7]} 22. Be4 {[%clk
0:02:08.3]} 22... Bxe4 {[%clk 0:02:31.5]} 23. Qxe4 {[%clk 0:02:08.5]} 23... Ng6
{[%clk 0:02:31.1]} 24. g3 {[%clk 0:02:07.6]} 24... Rxd1 {[%clk 0:02:29.2]} 25.
Rxd1 {[%clk 0:02:07.7]} 25... Rd8 {[%clk 0:02:31.1]} 26. Rd3 {[%clk 0:01:11.6]}
26... Kg7 {[%clk 0:02:23]} 27. Rd6 {[%clk 0:01:02.2]} 27... Kf8 {[%clk
0:02:13.9]} 28. Qd3 {[%clk 0:00:58.5]} 28... Ke7 {[%clk 0:02:13.2]} 29. Rxd8
{[%clk 0:00:49.8]} 29... Qxd8 {[%clk 0:02:15.1]} 30. Qxd8+ {[%clk 0:00:50]}
30... Kxd8 {[%clk 0:02:17]} 31. Kg2 {[%clk 0:00:50.1]} 31... Ke7 {[%clk
0:02:05]} 32. Kf3 {[%clk 0:00:50.9]} 32... h5 {[%clk 0:02:06.2]} 33. Ke4 {[%clk
0:00:47]} 33... a6 {[%clk 0:02:01.6]} 34. Bc1 {[%clk 0:00:42.7]} 34... f6 {[%clk
0:02:01.8]} 35. exf6+ {[%clk 0:00:39]} 35... Kxf6 {[%clk 0:02:03.7]} 36. Bb2+
{[%clk 0:00:34.4]} 36... Ke7 {[%clk 0:02:03.4]} 37. Be5 {[%clk 0:00:33.9]} 37...
g4 {[%clk 0:01:56.7]} 38. hxg4 {[%clk 0:00:30]} 38... hxg4 {[%clk 0:01:58.6]}
39. a3 {[%clk 0:00:30.6]} 39... Kd7 {[%clk 0:01:57.3]} 40. b4 {[%clk 0:00:30.6]}
40... cxb4 {[%clk 0:01:57.2]} 41. axb4 {[%clk 0:00:31.5]} 41... Kc6 {[%clk
0:01:58.4]} 42. Bd4 {[%clk 0:00:30.3]} 42... a5 {[%clk 0:01:58.4]} 43. bxa5
{[%clk 0:00:30.5]} 43... bxa5 {[%clk 0:01:59.2]} 44. f3 {[%clk 0:00:30.5]} 44...
gxf3 {[%clk 0:01:48.1]} 45. Kxf3 {[%clk 0:00:30.8]} 45... e5 {[%clk 0:01:42.8]}
46. Bc3 {[%clk 0:00:31.1]} 46... a4 {[%clk 0:01:44.2]} 47. Ke4 {[%clk
0:00:32.1]} 47... Kc5 {[%clk 0:01:44.6]} 48. Kf5 {[%clk 0:00:30.2]} 48... Kxc4
{[%clk 0:01:42.8]} 49. Ba1 {[%clk 0:00:30.9]} 49... a3 {[%clk 0:01:31.8]} 50.
Kxg6 {[%clk 0:00:31]} 50... e4 {[%clk 0:01:33.2]} 51. Kf5 {[%clk 0:00:31.7]}
51... e3 {[%clk 0:01:34.7]} 0-1

[Event "*** MasterClass Titled Tuesday Blitz"]
[Site "Chess.com"]
[Date "2017.10.03"]
[Round "6"]
[White "Andrjywa"]
[Black "Gabrielian_Artur"]
[Result "0-1"]
[WhiteElo "2342"]
[BlackElo "2565"]
[TimeControl "180+2"]
[EndTime "14:23:28 PDT"]
[Termination "Gabrielian_Artur won by resignation"]

1. e4 {[%clk 0:03:01.9]} 1... e5 {[%clk 0:03:00.4]} 2. Nf3 {[%clk 0:03:01]} 2...
Nc6 {[%clk 0:03:01.5]} 3. d4 {[%clk 0:03:02.5]} 3... exd4 {[%clk 0:03:01.9]} 4.
c3 {[%clk 0:03:04.1]} 4... d3 {[%clk 0:02:58]} 5. Bxd3 {[%clk 0:03:04.4]} 5...
d6 {[%clk 0:02:58.2]} 6. O-O {[%clk 0:03:05.9]} 6... Be7 {[%clk 0:02:59]} 7.
Nbd2 {[%clk 0:03:06.1]} 7... Nf6 {[%clk 0:03:00.1]} 8. Nd4 {[%clk 0:03:06.4]}
8... O-O {[%clk 0:03:00.3]} 9. Nxc6 {[%clk 0:03:06.5]} 9... bxc6 {[%clk
0:03:00.9]} 10. Nf3 {[%clk 0:03:08.1]} 10... Nd7 {[%clk 0:03:01.7]} 11. Bf4
{[%clk 0:03:05.9]} 11... Rb8 {[%clk 0:03:02]} 12. b3 {[%clk 0:03:06]} 12... Bf6
{[%clk 0:03:02.3]} 13. Qb1 {[%clk 0:03:05.3]} 13... Bxc3 {[%clk 0:03:01.9]} 14.
Qc2 {[%clk 0:02:59.4]} 14... Bxa1 {[%clk 0:03:02]} 15. Rxa1 {[%clk 0:03:00.8]}
15... Qf6 {[%clk 0:03:02.7]} 16. Qc1 {[%clk 0:02:57.4]} 16... Nc5 {[%clk
0:03:03.1]} 17. Bc2 {[%clk 0:02:48.4]} 17... Bg4 {[%clk 0:03:03.4]} 18. e5
{[%clk 0:02:03.2]} 18... Qe7 {[%clk 0:02:41.3]} 19. Ng5 {[%clk 0:01:40.3]} 19...
h6 {[%clk 0:02:40.3]} 20. Nh7 {[%clk 0:01:21.5]} 20... Rfe8 {[%clk 0:02:38.3]}
21. Bxh6 {[%clk 0:01:22.5]} 21... Qxe5 {[%clk 0:02:01.8]} 22. Bf4 {[%clk
0:01:21.8]} 22... Qd5 {[%clk 0:02:01.9]} 23. Ng5 {[%clk 0:01:15.5]} 23... Bf5
{[%clk 0:01:55.5]} 24. h3 {[%clk 0:00:59]} 24... f6 {[%clk 0:01:47.8]} 25. Nf3
{[%clk 0:00:47.4]} 25... Bxc2 {[%clk 0:01:39.2]} 26. Qxc2 {[%clk 0:00:48.8]}
26... Rb4 {[%clk 0:01:32.9]} 27. Bd2 {[%clk 0:00:47.7]} 27... Rbe4 {[%clk
0:01:33]} 28. Rd1 {[%clk 0:00:43.9]} 28... Qe6 {[%clk 0:01:32.6]} 29. b4 {[%clk
0:00:43.2]} 29... Nd7 {[%clk 0:01:33.2]} 30. Qxc6 {[%clk 0:00:43.7]} 30... Rc4
{[%clk 0:01:06.3]} 31. Qb7 {[%clk 0:00:38.2]} 31... Qe4 {[%clk 0:01:02.9]} 32.
Qxa7 {[%clk 0:00:37]} 32... Ra8 {[%clk 0:01:02.6]} 33. Qe3 {[%clk 0:00:32.9]}
33... Qxe3 {[%clk 0:01:03.2]} 34. Bxe3 {[%clk 0:00:34.1]} 34... Rxb4 {[%clk
0:00:58.3]} 35. Rd2 {[%clk 0:00:33.5]} 35... Rba4 {[%clk 0:00:58]} 36. Rc2
{[%clk 0:00:32]} 36... c5 {[%clk 0:00:58.7]} 37. Rd2 {[%clk 0:00:28.8]} 37...
R8a6 {[%clk 0:00:59.6]} 38. Bf4 {[%clk 0:00:29.9]} 38... Ne5 {[%clk 0:00:59.9]}
39. Bxe5 {[%clk 0:00:27.3]} 39... fxe5 {[%clk 0:01:00.6]} 40. Ng5 {[%clk
0:00:25.8]} 40... Rxa2 {[%clk 0:00:59.2]} 41. Rd3 {[%clk 0:00:27.1]} 41... c4
{[%clk 0:00:55.1]} 42. Rd5 {[%clk 0:00:20.9]} 42... R2a5 {[%clk 0:00:54.2]} 0-1

[Event "*** MasterClass Titled Tuesday Blitz"]
[Site "Chess.com"]
[Date "2017.10.03"]
[Round "6"]
[White "Kouzari"]
[Black "Buffy7"]
[Result "1-0"]
[WhiteElo "2541"]
[BlackElo "2458"]
[TimeControl "180+2"]
[EndTime "14:23:28 PDT"]
[Termination "Kouzari won by resignation"]

1. d4 {[%clk 0:03:01.9]} 1... f5 {[%clk 0:02:47.2]} 2. c4 {[%clk 0:03:03.8]}
2... d6 {[%clk 0:02:45.4]} 3. Nc3 {[%clk 0:03:05.1]} 3... Nf6 {[%clk 0:02:46.2]}
4. h4 {[%clk 0:03:06.2]} 4... c6 {[%clk 0:02:41.4]} 5. h5 {[%clk 0:03:06.2]}
5... e5 {[%clk 0:02:40.3]} 6. Bg5 {[%clk 0:02:57.8]} 6... h6 {[%clk 0:02:35]} 7.
Bh4 {[%clk 0:02:52.3]} 7... Be7 {[%clk 0:02:20.4]} 8. Nf3 {[%clk 0:02:49.9]}
8... e4 {[%clk 0:02:20.9]} 9. Nd2 {[%clk 0:02:50.9]} 9... e3 {[%clk 0:02:16.7]}
10. Nf3 {[%clk 0:01:53.8]} 10... Ng4 {[%clk 0:01:33.4]} 11. fxe3 {[%clk
0:01:47.3]} 11... O-O {[%clk 0:01:26.7]} 12. Qd3 {[%clk 0:01:39.8]} 12... Bxh4+
{[%clk 0:01:18]} 13. Rxh4 {[%clk 0:01:39.3]} 13... Qg5 {[%clk 0:01:16.6]} 14. g3
{[%clk 0:01:22]} 14... Nxe3 {[%clk 0:01:10.7]} 15. Kf2 {[%clk 0:01:12.8]} 15...
Ng4+ {[%clk 0:01:08.2]} 16. Kg1 {[%clk 0:01:10.4]} 16... Qe7 {[%clk 0:01:06.2]}
17. Bh3 {[%clk 0:01:00.3]} 17... Na6 {[%clk 0:00:56.5]} 18. Re1 {[%clk
0:00:56.7]} 18... Ne3 {[%clk 0:00:34.6]} 19. Ne5 {[%clk 0:00:45.4]} 19... dxe5
{[%clk 0:00:31.8]} 20. Qxe3 {[%clk 0:00:45.4]} 20... e4 {[%clk 0:00:32.9]} 21.
Qf4 {[%clk 0:00:35.6]} 21... Be6 {[%clk 0:00:31.9]} 22. b3 {[%clk 0:00:36.3]}
22... Rad8 {[%clk 0:00:28.4]} 23. e3 {[%clk 0:00:37.3]} 23... Nb4 {[%clk
0:00:25.2]} 24. Bf1 {[%clk 0:00:38]} 24... c5 {[%clk 0:00:23.3]} 25. d5 {[%clk
0:00:37.6]} 25... Bc8 {[%clk 0:00:24.3]} 26. Rh2 {[%clk 0:00:33.5]} 26... Na6
{[%clk 0:00:18.7]} 27. Rf2 {[%clk 0:00:30.7]} 27... Nb8 {[%clk 0:00:19.2]} 28.
Bh3 {[%clk 0:00:20.9]} 28... Nd7 {[%clk 0:00:20]} 29. Bxf5 {[%clk 0:00:21.5]}
29... Ne5 {[%clk 0:00:17.2]} 30. Be6+ {[%clk 0:00:14.1]} 30... Kh8 {[%clk
0:00:13.3]} 31. Qxe5 {[%clk 0:00:14.6]} 31... Rxf2 {[%clk 0:00:15.2]} 32. Kxf2
{[%clk 0:00:15.7]} 32... Qf8+ {[%clk 0:00:16.8]} 33. Qf4 {[%clk 0:00:16.1]}
33... Bxe6 {[%clk 0:00:18.7]} 34. dxe6 {[%clk 0:00:12.6]} 1-0